Workbook

Sheet Consignes
B7: Bienvenue dans l'outil de calcul du délai de récupération des améliorations foncières préparé par les conseillers régionaux du ministère de l'Agriculture, des Pêcheries et de l'Alimentation (MAPAQ). Cet outil permet d'évaluer rapidement le délai de récupération de l'investissement dans des travaux d'amélioration de sol en considérant l'impact de ce changement sur l'ensemble de la rotation des cultures dans l'entreprise.
B12: CONSIGNES //
B14: 1. Seules les cases vertes | E14: peuvent être modifiées.
B16: 2. Dans l'onglet Outil, au tableau 1, saisir les renseignements relatifs à l'investissement (coût des travaux par hectare, durée de vie utile, etc.).
B19: 3. Dans l'onglet Outil, au tableau 2, sélectionner les cultures incluses dans la rotation de l'entreprise (sous « Culture »). Indiquer les gains de rendement anticipés à la suite des travaux pour chaque culture de la rotation. Le tableau considère une rotation d'une durée d'au plus 8 ans. En fonction des données saisies, le tableau 2 calcule l'augmentation des revenus (rendement × prix) et l'augmentation des dépenses (seulement les charges liées à une récolte supplémentaire de grains ou de foin, l'amortissement et les frais de financement) à prévoir à la suite de l'investissement. Le résultat net (gain ou perte) par culture est rapporté dans la colonne « F ».
B25: 4. Consulter le délai de récupération de l'investissement, exprimé en années, au tableau 3 de l'onglet Outil. Le délai est calculé en fonction du résultat net moyen de la rotation. Si le résultat moyen est négatif (perte nette), cela signifie que les bénéfices associés à l'investissement sont inférieurs aux coûts. La mention « S.O. » est alors inscrite. Il n'y a pas de récupération de l'investissement à l'intérieur de la durée de vie utile de l'investissement. À l'inverse, si les bénéfices associés à l'investissement sont supérieurs aux coûts (gain net), le délai de récupération est égal ou inférieur à la durée de vie utile de l'investissement.
B30: 5. Les calculs sont basés sur des données de référence (voir les sources ci-dessous). Pour modifier les données d'une ou de plusieurs cultures ou pour ajouter une culture, aller dans l'onglet « Données conv. », si en régie conventionnelle, ou « Données bio. », si en régie biologique. Les données telles que le prix de vente des grains et le coût du séchage, par exemple, peuvent être modifiées en fonction de la réalité de l'entreprise.
B35: PRÉPARÉ PAR //
B36: Laurence Gendron, agr., M. Sc., et Olivier Marois-M., agr., conseillers régionaux en économie et gestion du MAPAQ avec la collaboration des Tables sectorielles en grandes cultures, en agroenvironnement et en économie et gestion.
B39: DATE //
B40: Conception: 2017-11-24 Dernière mise à jour: 2019-05-22
B43: RÉFÉRENCES //
B44: • Beauregard, G. (2015). Budget foin mil-trèfle rouge établi avec orge 2013 l'hectare - Balles rondes.
B45: • CRAAQ (2019a). « Maïs-grain biologique - Budget à l'hectare », Références économiques, AGDEX 111.19/821a.
B46: • CRAAQ (2019b). « Soya humain biologique - Budget à l'hectare », Références économiques, AGDEX 141.19/821.
B47: • CRAAQ (2019c). « Blé panifiable biologique - Budget à l'hectare », Références économiques, AGDEX 112.19/821.
B48: • CRAAQ (2019d). « Orge biologique - Budget à l'hectare », Références économiques, AGDEX 114.19/821b.
B49: • CRAAQ (2019e). « Avoine biologique - Budget à l'hectare », Références économiques, AGDEX 113.19/821b.
B50: • CRAAQ (2019f). « Maïs-grain - Budget à l'hectare », Références économiques, AGDEX 111/821b.
B51: • CRAAQ (2019g). « Soya - Budget à l'hectare », Références économiques, AGDEX 141/821.
B52: • CRAAQ (2018c). « Blé fourrager de printemps - Budget à l'hectare », Références économiques, AGDEX 112/821b.
B53: • CRAAQ (2018d). « Blé panifiable - Budget à l'hectare », Références économiques, AGDEX 112/821c.
B54: • CRAAQ (2018e). « Blé panifiable d'automne - Budget à l'hectare », Références économiques, AGDEX 112/821a.
B55: • CRAAQ (2018f). « Orge d'alimentation animale - Budget à l'hectare », Références économiques, AGDEX 114/821a.
B56: • CRAAQ (2018g). « Avoine d'alimentation animale - Budget à l'hectare », Références économiques, AGDEX 113/821a.
B57: • CRAAQ (2018h). « Canola - Budget à l'hectare », Références économiques, AGDEX 149/821.
B58: • CRAAQ (2018i). « Machinerie: coûts d'utilisation et taux à forfait suggérés », Références économiques, AGDEX 740/825.
B59: • CRAAQ (2018j). « Foin en balles rondes engrangées, Frais de récolte, de conservation et de reprise », Références économiques, AGDEX 732/821k.
B61: • CRAAQ (2018k). « Foin de luzerne et de mil sans plante-abri - Budget », Références économiques, AGDEX 121/821.
B62: • CRAAQ (2015). « Loyer annuel - Fonds de terre, bâtiments, machinerie et équipement », Références économiques, AGDEX 824/825a.
B64: • CRAAQ (2014). « Canola biologique - Budget à l'hectare », Références économiques, AGDEX 149.19/821.
B65: • Marois-M., O. (2013). « Vendre ou ne pas vendre votre maïs à la récolte: une question de coûts d'entreposage? », Gestion et technologies agricoles (GTA).
B68: MISE EN GARDE //
B70: L'utilisateur demeure le seul responsable des résultats obtenus et de l'interprétation qui peut en découler.

Sheet Outil
B2: Réalisé par : | J2: Ferme :
B3: Nom du conseiller | J3: Nom de l'entreprise
C6: RENSEIGNEMENTS RELATIFS À L'INVESTISSEMENT | K6: RÉSULTAT
C7: Capital investi (dépense initiale d'investissement en $/ha) | K7: Délai de récupération (années) | N7: =IFERROR(IF($G$17<0,"S.O.",($G$7/($G$17+($G$7/$G$8)))),"") -> 
C8: Durée de vie utile (années)
C9: Rémunération du capital investi (intérêt)
C10: Entretien annuel (en % de la valeur à neuf)
C13: GAIN OU PERTE ASSOCIÉ AU PROJET
C14: Année de la rotation | D14: Culture | E14: Variation anticipée du rendement (t/ha) | F14: Gain net (perte nette) ($/ha)
F16: Par culture | G16: Moy. rotation
C17: An 1 | F17: =IF(D17="Maïs-grain conv.",(('Données conv.'!F$16-'Données conv.'!F$31)*$E17)-($G$10*$G$7)-($G$7/$G$8)-($G$7*$G$9/2),IF(D17="Soya conv.",('Données conv.'!G$16-'Données conv.'!G$31)*$E17-$G$10*$G$7-$G$7/$G$8-$G$7*$G$9/2,IF(D17="Blé animal conv.",('Données conv.'!H$16-'Données conv.'!H$31)*$E17-$G$10*$G$7-$G$7/$G$8-$G$7*$G$9/2,IF(D17="Blé panifiable conv.",(('Données conv.'!I$16-'Données conv.'!I$31)*$E17)-($G$10*$G$7)-($G$7/$G$8)-($G$7*$G$9/2),IF(D17="Orge animale conv.",(('Données conv.'!J$16-'Données conv.'!J$31)*$E17)-($G$10*$G$7)-($G$7/$G$8)-($G$7*$G$9/2),IF(D17="Avoine animale conv.",(('Données conv.'!K$16-'Données conv.'!K$31)*$E17)-($G$10*$G$7)-($G$7/$G$8)-($G$7*$G$9/2),IF(D17="Canola conv.",('Données conv.'!L$16-'Données conv.'!L$31)*$E17-$G$10*$G$7-$G$7/$G$8-$G$7*$G$9/2,IF(D17="Foin (PB)",('Données conv.'!N$16-'Données conv.'!N$31)*$E17-$G$10*$G$7-$G$7/$G$8-$G$7*$G$9/2,IF(D17="Foin (BR)",('Données conv.'!O$16-'Données conv.'!O$31)*$E17-$G$10*$G$7-$G$7/$G$8-$G$7*$G$9/2,IF(D17="Autre conv.",(('Données conv.'!Q$16-'Données conv.'!Q$31)*$E17)-($G$10*$G$7)-($G$7/$G$8)-($G$7*$G$9/2),IF(D17="Maïs-grain bio.",('Données bio.'!G$15-'Données bio.'!G$26)*$E17-$G$10*$G$7-$G$7/$G$8-$G$7*$G$9/2,IF(D17="Soya humain bio.",('Données bio.'!H$15-'Données bio.'!H$26)*$E17-$G$10*$G$7-$G$7/$G$8-$G$7*$G$9/2,IF(D17="Blé panifiable bio.",('Données bio.'!I$15-'Données bio.'!I$26)*$E17-$G$10*$G$7-$G$7/$G$8-$G$7*$G$9/2,IF(D17="Orge bio.",('Données bio.'!J$15-'Données bio.'!J$26)*$E17-$G$10*$G$7-$G$7/$G$8-$G$7*$G$9/2,IF(D17="Avoine bio.",('Données bio.'!K$15-'Données bio.'!K$26)*$E17-$G$10*$G$7-$G$7/$G$8-$G$7*$G$9/2,IF(D17="Canola bio.",('Données bio.'!L$15-'Données bio.'!L$26)*$E17-$G$10*$G$7-$G$7/$G$8-$G$7*$G$9/2,IF(D17="Autre bio.",('Données bio.'!N$15-'Données bio.'!N$26)*$E17-$G$10*$G$7-$G$7/$G$8-$G$7*$G$9/2,""))))))))))))))))) ->  | G17: =IFERROR(SUM(F17:F24)/(COUNTIF($F$17:$F$24,">""""")+COUNT($F$17:$F$24)),"") -> 
C18: An 2 | F18: =IF(D18="Maïs-grain conv.",(('Données conv.'!F$16-'Données conv.'!F$31)*$E18)-($G$10*$G$7)-($G$7/$G$8)-($G$7*$G$9/2),IF(D18="Soya conv.",('Données conv.'!G$16-'Données conv.'!G$31)*$E18-$G$10*$G$7-$G$7/$G$8-$G$7*$G$9/2,IF(D18="Blé animal conv.",('Données conv.'!H$16-'Données conv.'!H$31)*$E18-$G$10*$G$7-$G$7/$G$8-$G$7*$G$9/2,IF(D18="Blé panifiable conv.",(('Données conv.'!I$16-'Données conv.'!I$31)*$E18)-($G$10*$G$7)-($G$7/$G$8)-($G$7*$G$9/2),IF(D18="Orge animale conv.",(('Données conv.'!J$16-'Données conv.'!J$31)*$E18)-($G$10*$G$7)-($G$7/$G$8)-($G$7*$G$9/2),IF(D18="Avoine animale conv.",(('Données conv.'!K$16-'Données conv.'!K$31)*$E18)-($G$10*$G$7)-($G$7/$G$8)-($G$7*$G$9/2),IF(D18="Canola conv.",('Données conv.'!L$16-'Données conv.'!L$31)*$E18-$G$10*$G$7-$G$7/$G$8-$G$7*$G$9/2,IF(D18="Foin (PB)",('Données conv.'!N$16-'Données conv.'!N$31)*$E18-$G$10*$G$7-$G$7/$G$8-$G$7*$G$9/2,IF(D18="Foin (BR)",('Données conv.'!O$16-'Données conv.'!O$31)*$E18-$G$10*$G$7-$G$7/$G$8-$G$7*$G$9/2,IF(D18="Autre conv.",(('Données conv.'!Q$16-'Données conv.'!Q$31)*$E18)-($G$10*$G$7)-($G$7/$G$8)-($G$7*$G$9/2),IF(D18="Maïs-grain bio.",('Données bio.'!G$15-'Données bio.'!G$26)*$E18-$G$10*$G$7-$G$7/$G$8-$G$7*$G$9/2,IF(D18="Soya humain bio.",('Données bio.'!H$15-'Données bio.'!H$26)*$E18-$G$10*$G$7-$G$7/$G$8-$G$7*$G$9/2,IF(D18="Blé panifiable bio.",('Données bio.'!I$15-'Données bio.'!I$26)*$E18-$G$10*$G$7-$G$7/$G$8-$G$7*$G$9/2,IF(D18="Orge bio.",('Données bio.'!J$15-'Données bio.'!J$26)*$E18-$G$10*$G$7-$G$7/$G$8-$G$7*$G$9/2,IF(D18="Avoine bio.",('Données bio.'!K$15-'Données bio.'!K$26)*$E18-$G$10*$G$7-$G$7/$G$8-$G$7*$G$9/2,IF(D18="Canola bio.",('Données bio.'!L$15-'Données bio.'!L$26)*$E18-$G$10*$G$7-$G$7/$G$8-$G$7*$G$9/2,IF(D18="Autre bio.",('Données bio.'!N$15-'Données bio.'!N$26)*$E18-$G$10*$G$7-$G$7/$G$8-$G$7*$G$9/2,""))))))))))))))))) -> 
C19: An 3 | F19: =IF(D19="Maïs-grain conv.",(('Données conv.'!F$16-'Données conv.'!F$31)*$E19)-($G$10*$G$7)-($G$7/$G$8)-($G$7*$G$9/2),IF(D19="Soya conv.",('Données conv.'!G$16-'Données conv.'!G$31)*$E19-$G$10*$G$7-$G$7/$G$8-$G$7*$G$9/2,IF(D19="Blé animal conv.",('Données conv.'!H$16-'Données conv.'!H$31)*$E19-$G$10*$G$7-$G$7/$G$8-$G$7*$G$9/2,IF(D19="Blé panifiable conv.",(('Données conv.'!I$16-'Données conv.'!I$31)*$E19)-($G$10*$G$7)-($G$7/$G$8)-($G$7*$G$9/2),IF(D19="Orge animale conv.",(('Données conv.'!J$16-'Données conv.'!J$31)*$E19)-($G$10*$G$7)-($G$7/$G$8)-($G$7*$G$9/2),IF(D19="Avoine animale conv.",(('Données conv.'!K$16-'Données conv.'!K$31)*$E19)-($G$10*$G$7)-($G$7/$G$8)-($G$7*$G$9/2),IF(D19="Canola conv.",('Données conv.'!L$16-'Données conv.'!L$31)*$E19-$G$10*$G$7-$G$7/$G$8-$G$7*$G$9/2,IF(D19="Foin (PB)",('Données conv.'!N$16-'Données conv.'!N$31)*$E19-$G$10*$G$7-$G$7/$G$8-$G$7*$G$9/2,IF(D19="Foin (BR)",('Données conv.'!O$16-'Données conv.'!O$31)*$E19-$G$10*$G$7-$G$7/$G$8-$G$7*$G$9/2,IF(D19="Autre conv.",(('Données conv.'!Q$16-'Données conv.'!Q$31)*$E19)-($G$10*$G$7)-($G$7/$G$8)-($G$7*$G$9/2),IF(D19="Maïs-grain bio.",('Données bio.'!G$15-'Données bio.'!G$26)*$E19-$G$10*$G$7-$G$7/$G$8-$G$7*$G$9/2,IF(D19="Soya humain bio.",('Données bio.'!H$15-'Données bio.'!H$26)*$E19-$G$10*$G$7-$G$7/$G$8-$G$7*$G$9/2,IF(D19="Blé panifiable bio.",('Données bio.'!I$15-'Données bio.'!I$26)*$E19-$G$10*$G$7-$G$7/$G$8-$G$7*$G$9/2,IF(D19="Orge bio.",('Données bio.'!J$15-'Données bio.'!J$26)*$E19-$G$10*$G$7-$G$7/$G$8-$G$7*$G$9/2,IF(D19="Avoine bio.",('Données bio.'!K$15-'Données bio.'!K$26)*$E19-$G$10*$G$7-$G$7/$G$8-$G$7*$G$9/2,IF(D19="Canola bio.",('Données bio.'!L$15-'Données bio.'!L$26)*$E19-$G$10*$G$7-$G$7/$G$8-$G$7*$G$9/2,IF(D19="Autre bio.",('Données bio.'!N$15-'Données bio.'!N$26)*$E19-$G$10*$G$7-$G$7/$G$8-$G$7*$G$9/2,""))))))))))))))))) -> 
C20: An 4 | F20: =IF(D20="Maïs-grain conv.",(('Données conv.'!F$16-'Données conv.'!F$31)*$E20)-($G$10*$G$7)-($G$7/$G$8)-($G$7*$G$9/2),IF(D20="Soya conv.",('Données conv.'!G$16-'Données conv.'!G$31)*$E20-$G$10*$G$7-$G$7/$G$8-$G$7*$G$9/2,IF(D20="Blé animal conv.",('Données conv.'!H$16-'Données conv.'!H$31)*$E20-$G$10*$G$7-$G$7/$G$8-$G$7*$G$9/2,IF(D20="Blé panifiable conv.",(('Données conv.'!I$16-'Données conv.'!I$31)*$E20)-($G$10*$G$7)-($G$7/$G$8)-($G$7*$G$9/2),IF(D20="Orge animale conv.",(('Données conv.'!J$16-'Données conv.'!J$31)*$E20)-($G$10*$G$7)-($G$7/$G$8)-($G$7*$G$9/2),IF(D20="Avoine animale conv.",(('Données conv.'!K$16-'Données conv.'!K$31)*$E20)-($G$10*$G$7)-($G$7/$G$8)-($G$7*$G$9/2),IF(D20="Canola conv.",('Données conv.'!L$16-'Données conv.'!L$31)*$E20-$G$10*$G$7-$G$7/$G$8-$G$7*$G$9/2,IF(D20="Foin (PB)",('Données conv.'!N$16-'Données conv.'!N$31)*$E20-$G$10*$G$7-$G$7/$G$8-$G$7*$G$9/2,IF(D20="Foin (BR)",('Données conv.'!O$16-'Données conv.'!O$31)*$E20-$G$10*$G$7-$G$7/$G$8-$G$7*$G$9/2,IF(D20="Autre conv.",(('Données conv.'!Q$16-'Données conv.'!Q$31)*$E20)-($G$10*$G$7)-($G$7/$G$8)-($G$7*$G$9/2),IF(D20="Maïs-grain bio.",('Données bio.'!G$15-'Données bio.'!G$26)*$E20-$G$10*$G$7-$G$7/$G$8-$G$7*$G$9/2,IF(D20="Soya humain bio.",('Données bio.'!H$15-'Données bio.'!H$26)*$E20-$G$10*$G$7-$G$7/$G$8-$G$7*$G$9/2,IF(D20="Blé panifiable bio.",('Données bio.'!I$15-'Données bio.'!I$26)*$E20-$G$10*$G$7-$G$7/$G$8-$G$7*$G$9/2,IF(D20="Orge bio.",('Données bio.'!J$15-'Données bio.'!J$26)*$E20-$G$10*$G$7-$G$7/$G$8-$G$7*$G$9/2,IF(D20="Avoine bio.",('Données bio.'!K$15-'Données bio.'!K$26)*$E20-$G$10*$G$7-$G$7/$G$8-$G$7*$G$9/2,IF(D20="Canola bio.",('Données bio.'!L$15-'Données bio.'!L$26)*$E20-$G$10*$G$7-$G$7/$G$8-$G$7*$G$9/2,IF(D20="Autre bio.",('Données bio.'!N$15-'Données bio.'!N$26)*$E20-$G$10*$G$7-$G$7/$G$8-$G$7*$G$9/2,""))))))))))))))))) -> 
C21: An 5 | F21: =IF(D21="Maïs-grain conv.",(('Données conv.'!F$16-'Données conv.'!F$31)*$E21)-($G$10*$G$7)-($G$7/$G$8)-($G$7*$G$9/2),IF(D21="Soya conv.",('Données conv.'!G$16-'Données conv.'!G$31)*$E21-$G$10*$G$7-$G$7/$G$8-$G$7*$G$9/2,IF(D21="Blé animal conv.",('Données conv.'!H$16-'Données conv.'!H$31)*$E21-$G$10*$G$7-$G$7/$G$8-$G$7*$G$9/2,IF(D21="Blé panifiable conv.",(('Données conv.'!I$16-'Données conv.'!I$31)*$E21)-($G$10*$G$7)-($G$7/$G$8)-($G$7*$G$9/2),IF(D21="Orge animale conv.",(('Données conv.'!J$16-'Données conv.'!J$31)*$E21)-($G$10*$G$7)-($G$7/$G$8)-($G$7*$G$9/2),IF(D21="Avoine animale conv.",(('Données conv.'!K$16-'Données conv.'!K$31)*$E21)-($G$10*$G$7)-($G$7/$G$8)-($G$7*$G$9/2),IF(D21="Canola conv.",('Données conv.'!L$16-'Données conv.'!L$31)*$E21-$G$10*$G$7-$G$7/$G$8-$G$7*$G$9/2,IF(D21="Foin (PB)",('Données conv.'!N$16-'Données conv.'!N$31)*$E21-$G$10*$G$7-$G$7/$G$8-$G$7*$G$9/2,IF(D21="Foin (BR)",('Données conv.'!O$16-'Données conv.'!O$31)*$E21-$G$10*$G$7-$G$7/$G$8-$G$7*$G$9/2,IF(D21="Autre conv.",(('Données conv.'!Q$16-'Données conv.'!Q$31)*$E21)-($G$10*$G$7)-($G$7/$G$8)-($G$7*$G$9/2),IF(D21="Maïs-grain bio.",('Données bio.'!G$15-'Données bio.'!G$26)*$E21-$G$10*$G$7-$G$7/$G$8-$G$7*$G$9/2,IF(D21="Soya humain bio.",('Données bio.'!H$15-'Données bio.'!H$26)*$E21-$G$10*$G$7-$G$7/$G$8-$G$7*$G$9/2,IF(D21="Blé panifiable bio.",('Données bio.'!I$15-'Données bio.'!I$26)*$E21-$G$10*$G$7-$G$7/$G$8-$G$7*$G$9/2,IF(D21="Orge bio.",('Données bio.'!J$15-'Données bio.'!J$26)*$E21-$G$10*$G$7-$G$7/$G$8-$G$7*$G$9/2,IF(D21="Avoine bio.",('Données bio.'!K$15-'Données bio.'!K$26)*$E21-$G$10*$G$7-$G$7/$G$8-$G$7*$G$9/2,IF(D21="Canola bio.",('Données bio.'!L$15-'Données bio.'!L$26)*$E21-$G$10*$G$7-$G$7/$G$8-$G$7*$G$9/2,IF(D21="Autre bio.",('Données bio.'!N$15-'Données bio.'!N$26)*$E21-$G$10*$G$7-$G$7/$G$8-$G$7*$G$9/2,""))))))))))))))))) -> 
C22: An 6 | F22: =IF(D22="Maïs-grain conv.",(('Données conv.'!F$16-'Données conv.'!F$31)*$E22)-($G$10*$G$7)-($G$7/$G$8)-($G$7*$G$9/2),IF(D22="Soya conv.",('Données conv.'!G$16-'Données conv.'!G$31)*$E22-$G$10*$G$7-$G$7/$G$8-$G$7*$G$9/2,IF(D22="Blé animal conv.",('Données conv.'!H$16-'Données conv.'!H$31)*$E22-$G$10*$G$7-$G$7/$G$8-$G$7*$G$9/2,IF(D22="Blé panifiable conv.",(('Données conv.'!I$16-'Données conv.'!I$31)*$E22)-($G$10*$G$7)-($G$7/$G$8)-($G$7*$G$9/2),IF(D22="Orge animale conv.",(('Données conv.'!J$16-'Données conv.'!J$31)*$E22)-($G$10*$G$7)-($G$7/$G$8)-($G$7*$G$9/2),IF(D22="Avoine animale conv.",(('Données conv.'!K$16-'Données conv.'!K$31)*$E22)-($G$10*$G$7)-($G$7/$G$8)-($G$7*$G$9/2),IF(D22="Canola conv.",('Données conv.'!L$16-'Données conv.'!L$31)*$E22-$G$10*$G$7-$G$7/$G$8-$G$7*$G$9/2,IF(D22="Foin (PB)",('Données conv.'!N$16-'Données conv.'!N$31)*$E22-$G$10*$G$7-$G$7/$G$8-$G$7*$G$9/2,IF(D22="Foin (BR)",('Données conv.'!O$16-'Données conv.'!O$31)*$E22-$G$10*$G$7-$G$7/$G$8-$G$7*$G$9/2,IF(D22="Autre conv.",(('Données conv.'!Q$16-'Données conv.'!Q$31)*$E22)-($G$10*$G$7)-($G$7/$G$8)-($G$7*$G$9/2),IF(D22="Maïs-grain bio.",('Données bio.'!G$15-'Données bio.'!G$26)*$E22-$G$10*$G$7-$G$7/$G$8-$G$7*$G$9/2,IF(D22="Soya humain bio.",('Données bio.'!H$15-'Données bio.'!H$26)*$E22-$G$10*$G$7-$G$7/$G$8-$G$7*$G$9/2,IF(D22="Blé panifiable bio.",('Données bio.'!I$15-'Données bio.'!I$26)*$E22-$G$10*$G$7-$G$7/$G$8-$G$7*$G$9/2,IF(D22="Orge bio.",('Données bio.'!J$15-'Données bio.'!J$26)*$E22-$G$10*$G$7-$G$7/$G$8-$G$7*$G$9/2,IF(D22="Avoine bio.",('Données bio.'!K$15-'Données bio.'!K$26)*$E22-$G$10*$G$7-$G$7/$G$8-$G$7*$G$9/2,IF(D22="Canola bio.",('Données bio.'!L$15-'Données bio.'!L$26)*$E22-$G$10*$G$7-$G$7/$G$8-$G$7*$G$9/2,IF(D22="Autre bio.",('Données bio.'!N$15-'Données bio.'!N$26)*$E22-$G$10*$G$7-$G$7/$G$8-$G$7*$G$9/2,""))))))))))))))))) -> 
C23: An 7 | F23: =IF(D23="Maïs-grain conv.",(('Données conv.'!F$16-'Données conv.'!F$31)*$E23)-($G$10*$G$7)-($G$7/$G$8)-($G$7*$G$9/2),IF(D23="Soya conv.",('Données conv.'!G$16-'Données conv.'!G$31)*$E23-$G$10*$G$7-$G$7/$G$8-$G$7*$G$9/2,IF(D23="Blé animal conv.",('Données conv.'!H$16-'Données conv.'!H$31)*$E23-$G$10*$G$7-$G$7/$G$8-$G$7*$G$9/2,IF(D23="Blé panifiable conv.",(('Données conv.'!I$16-'Données conv.'!I$31)*$E23)-($G$10*$G$7)-($G$7/$G$8)-($G$7*$G$9/2),IF(D23="Orge animale conv.",(('Données conv.'!J$16-'Données conv.'!J$31)*$E23)-($G$10*$G$7)-($G$7/$G$8)-($G$7*$G$9/2),IF(D23="Avoine animale conv.",(('Données conv.'!K$16-'Données conv.'!K$31)*$E23)-($G$10*$G$7)-($G$7/$G$8)-($G$7*$G$9/2),IF(D23="Canola conv.",('Données conv.'!L$16-'Données conv.'!L$31)*$E23-$G$10*$G$7-$G$7/$G$8-$G$7*$G$9/2,IF(D23="Foin (PB)",('Données conv.'!N$16-'Données conv.'!N$31)*$E23-$G$10*$G$7-$G$7/$G$8-$G$7*$G$9/2,IF(D23="Foin (BR)",('Données conv.'!O$16-'Données conv.'!O$31)*$E23-$G$10*$G$7-$G$7/$G$8-$G$7*$G$9/2,IF(D23="Autre conv.",(('Données conv.'!Q$16-'Données conv.'!Q$31)*$E23)-($G$10*$G$7)-($G$7/$G$8)-($G$7*$G$9/2),IF(D23="Maïs-grain bio.",('Données bio.'!G$15-'Données bio.'!G$26)*$E23-$G$10*$G$7-$G$7/$G$8-$G$7*$G$9/2,IF(D23="Soya humain bio.",('Données bio.'!H$15-'Données bio.'!H$26)*$E23-$G$10*$G$7-$G$7/$G$8-$G$7*$G$9/2,IF(D23="Blé panifiable bio.",('Données bio.'!I$15-'Données bio.'!I$26)*$E23-$G$10*$G$7-$G$7/$G$8-$G$7*$G$9/2,IF(D23="Orge bio.",('Données bio.'!J$15-'Données bio.'!J$26)*$E23-$G$10*$G$7-$G$7/$G$8-$G$7*$G$9/2,IF(D23="Avoine bio.",('Données bio.'!K$15-'Données bio.'!K$26)*$E23-$G$10*$G$7-$G$7/$G$8-$G$7*$G$9/2,IF(D23="Canola bio.",('Données bio.'!L$15-'Données bio.'!L$26)*$E23-$G$10*$G$7-$G$7/$G$8-$G$7*$G$9/2,IF(D23="Autre bio.",('Données bio.'!N$15-'Données bio.'!N$26)*$E23-$G$10*$G$7-$G$7/$G$8-$G$7*$G$9/2,""))))))))))))))))) -> 
C24: An 8 | F24: =IF(D24="Maïs-grain conv.",(('Données conv.'!F$16-'Données conv.'!F$31)*$E24)-($G$10*$G$7)-($G$7/$G$8)-($G$7*$G$9/2),IF(D24="Soya conv.",('Données conv.'!G$16-'Données conv.'!G$31)*$E24-$G$10*$G$7-$G$7/$G$8-$G$7*$G$9/2,IF(D24="Blé animal conv.",('Données conv.'!H$16-'Données conv.'!H$31)*$E24-$G$10*$G$7-$G$7/$G$8-$G$7*$G$9/2,IF(D24="Blé panifiable conv.",(('Données conv.'!I$16-'Données conv.'!I$31)*$E24)-($G$10*$G$7)-($G$7/$G$8)-($G$7*$G$9/2),IF(D24="Orge animale conv.",(('Données conv.'!J$16-'Données conv.'!J$31)*$E24)-($G$10*$G$7)-($G$7/$G$8)-($G$7*$G$9/2),IF(D24="Avoine animale conv.",(('Données conv.'!K$16-'Données conv.'!K$31)*$E24)-($G$10*$G$7)-($G$7/$G$8)-($G$7*$G$9/2),IF(D24="Canola conv.",('Données conv.'!L$16-'Données conv.'!L$31)*$E24-$G$10*$G$7-$G$7/$G$8-$G$7*$G$9/2,IF(D24="Foin (PB)",('Données conv.'!N$16-'Données conv.'!N$31)*$E24-$G$10*$G$7-$G$7/$G$8-$G$7*$G$9/2,IF(D24="Foin (BR)",('Données conv.'!O$16-'Données conv.'!O$31)*$E24-$G$10*$G$7-$G$7/$G$8-$G$7*$G$9/2,IF(D24="Autre conv.",(('Données conv.'!Q$16-'Données conv.'!Q$31)*$E24)-($G$10*$G$7)-($G$7/$G$8)-($G$7*$G$9/2),IF(D24="Maïs-grain bio.",('Données bio.'!G$15-'Données bio.'!G$26)*$E24-$G$10*$G$7-$G$7/$G$8-$G$7*$G$9/2,IF(D24="Soya humain bio.",('Données bio.'!H$15-'Données bio.'!H$26)*$E24-$G$10*$G$7-$G$7/$G$8-$G$7*$G$9/2,IF(D24="Blé panifiable bio.",('Données bio.'!I$15-'Données bio.'!I$26)*$E24-$G$10*$G$7-$G$7/$G$8-$G$7*$G$9/2,IF(D24="Orge bio.",('Données bio.'!J$15-'Données bio.'!J$26)*$E24-$G$10*$G$7-$G$7/$G$8-$G$7*$G$9/2,IF(D24="Avoine bio.",('Données bio.'!K$15-'Données bio.'!K$26)*$E24-$G$10*$G$7-$G$7/$G$8-$G$7*$G$9/2,IF(D24="Canola bio.",('Données bio.'!L$15-'Données bio.'!L$26)*$E24-$G$10*$G$7-$G$7/$G$8-$G$7*$G$9/2,IF(D24="Autre bio.",('Données bio.'!N$15-'Données bio.'!N$26)*$E24-$G$10*$G$7-$G$7/$G$8-$G$7*$G$9/2,""))))))))))))))))) -> 
B30: • Préparé par Laurence Gendron, agr., M. Sc. et Olivier Marois-M., agr., conseillers régionaux en économie et gestion du MAPAQ, en collaboration avec les Tables sectorielles en grandes cultures, en agroenvironnement et en économie et gestion. Pour obtenir la version actualisée de l'outil ou pour toutes questions, communiquer avec Laurence Gendron (laurence.gendron@mapaq.gouv.qc.ca). L'utilisateur demeure le seul responsable des résultats obtenus et de l'interprétation qui peut en découler.
B34: • Les données des Références économiques du CRAAQ ne peuvent être reproduites ou adaptées sans l’autorisation écrite du CRAAQ afin de respecter les droits d’auteur. Ces données sont disponibles en collections, soit Grandes cultures et Grandes cultures biologiques, sur le site Web du CRAAQ: https://www.craaq.qc.ca/Publications-du-CRAAQ/collections/t/27?t=3.

Sheet Données conv.
C2: PRODUCTION CONVENTIONNELLE
B4: DONNÉES DE RÉFÉRENCE
F6: Céréales, maïs-grain et protéagineuses | N6: Fourrages | Q6: Autre
F7: Maïs-grain conv. | G7: Soya conv. | H7: Blé animal conv. | I7: Blé panifiable conv. | J7: Orge animale conv. | K7: Avoine animale conv. | L7: Canola conv. | N7: Foin (PB) | O7: Foin (BR) | Q7: Autre conv.
C8: Composantes
C12: Produits
C13: Prix de la récolte ($/t) | F13: 207 | G13: 448 | H13: 215 | I13: 275 | J13: 190 | K13: 190 | L13: 535 | N13: 175 | O13: 175
C14: Agri-investissement (%) | F14: 1 | G14: 1 | H14: 1 | I14: 1 | J14: 1 | K14: 1 | L14: 1 | N14: 1 | O14: 1
C15: Agri-Québec (%) | F15: 3.2 | G15: 3.2 | N15: 3.2 | O15: 3.2
C16: Produits additionnels totaux ($/t) | F16: =F13+(F13*F14/100)+(F13*F15/100) -> 215.694 | G16: =G13+(G13*G14/100)+(G13*G15/100) -> 466.816 | H16: =H13+(H13*H14/100) -> 217.15 | I16: 277.75 | J16: 191.9 | K16: 191.9 | L16: 540.35 | N16: =N13+(N13*N14/100)+(N13*N15/100) -> 182.35 | O16: =O13+(O13*O14/100)+(O13*O15/100) -> 182.35 | Q16: =Q13+(Q13*Q14/100)+(Q13*Q15/100) -> 0
C18: Charges
C19: Séchage (à la ferme ou à forfait) ($/t) | F19: 18.95 | G19: 3.97 | H19: 10.05 | I19: 10 | J19: 1.51 | K19: 3.59 | L19: 5.75 | N19: 6.76
C20: Entreposage et aération ($/t) | F20: 2.3 | G20: 1.82 | H20: 3.22 | I20: 3.08 | J20: 3.71 | K20: 5.9 | L20: 3.88 | O20: 6.98
C21: Criblage (à la ferme ou à forfait) ($/t) | I21: 3.23
C22: Plan conjoint ($/t) | F22: 1.3 | G22: 1.4 | H22: 1.4 | I22: 1.4 | J22: 1.4 | K22: 1.4 | L22: 1.4
C23: Transport hors ferme ($/t) | F23: 15 | G23: 19.5 | H23: 16 | I23: 16 | J23: 16 | K23: 15 | L23: 16
C24: Analyse qualité ($/t) | I24: 3
C25: Ficelle ($/t) | N25: =0.05*1000/15 -> 3.333333333 | O25: =0.9*1000/253 -> 3.557312253
C26: Pressage ($/t) | N26: =0.12*1000/15 -> 8 | O26: =4.4*1000/253 -> 17.39130435
C27: Transport du champ à la ferme ($/t) | N27: =0.1*1000/15 -> 6.666666667 | O27: =1.81*1000/253 -> 7.154150198
C28: Déchargement (chargeur frontal) | O28: =0.75*1000/253 -> 2.964426877
C29: Autre charge (à personnaliser)
C30: Intérêts court terme ($/t) | F30: =SUM(F19:F29)*6/12*0.05 -> 0.93875 | G30: 0.66725 | H30: 0.76675 | I30: 0.91775 | J30: 0.5655 | K30: 0.64725 | L30: 0.67575 | N30: =SUM(N19:N29)*6/12*0.05 -> 0.619 | O30: =SUM(O19:O29)*6/12*0.05 -> 0.9511798419 | Q30: =SUM(Q19:Q29)*6/12*0.05 -> 0
C31: Charges variables additionnelles totales ($/t) | F31: =SUM(F19:F30) -> 38.48875 | G31: 27.35725 | H31: 31.43675 | I31: 37.62775 | J31: 23.1855 | K31: 26.53725 | L31: 27.70575 | N31: =SUM(N19:N30) -> 25.379 | O31: =SUM(O19:O29) -> 38.04719368 | Q31: =SUM(Q19:Q30) -> 0

Sheet Données bio.
C2: PRODUCTION BIOLOGIQUE
C4: DONNÉES DE RÉFÉRENCE
G6: Céréales, maïs-grain et protéagineuses | N6: Autre
G7: Maïs-grain bio. | H7: Soya humain bio. | I7: Blé panifiable bio. | J7: Orge bio. | K7: Avoine bio. | L7: Canola bio. | N7: Autre bio.
D8: Composantes
D11: Produits
D12: Prix de la récolte ($/t) | G12: 488 | H12: 1060 | I12: 542 | J12: 450 | K12: 415 | L12: 1192
D13: Agri-investissement (%) | G13: 1 | H13: 1 | I13: 1 | J13: 1 | K13: 1 | L13: 1
D14: Agri-Québec (%) | G14: 3.2 | H14: 3.2
D15: Produits additionnels totaux ($/t) | G15: =G12+(G12*G13/100)+(G12*G14/100) -> 508.496 | H15: =H12+(H12*H13/100)+(H12*H14/100) -> 1104.52 | I15: =I12+(I12*I13/100) -> 547.42 | J15: =J12+(J12*J13/100) -> 454.5 | K15: =K12+(K12*K13/100) -> 419.15 | L15: =L12+(L12*L13/100) -> 1203.92 | N15: =N12+(N12*N13/100)+(N12*N14/100) -> 0
D17: Charges
D18: Séchage (à la ferme ou à forfait) ($/t) | G18: 19.34 | H18: 2.04 | I18: 10.02 | J18: 2.44 | K18: 3.66
D19: Entreposage et aération ($/t) | G19: 3.55 | H19: 3.16 | I19: 5.28 | J19: 4.14 | K19: 5.9 | L19: 2.23
D20: Criblage (à la ferme ou à forfait) ($/t) | H20: 3.23 | I20: 3.23 | L20: 100
D21: Plan conjoint ($/t) | G21: 1.8 | H21: 1.9 | I21: 1.9 | J21: 1.9 | K21: 1.9 | L21: 1.9
D22: Transport hors ferme ($/t) | G22: 15 | H22: 20 | I22: 15 | J22: 15 | K22: 15 | L22: 23
D23: Analyse qualité ($/t) | I23: 3 | L23: 4
D24: Autre charge (à personnaliser)
D25: Intérêts court terme ($/t) | G25: =SUM(G18:G23)*6/12*0.05 -> 0.99225 | H25: 0.75825 | I25: 0.96075 | J25: 0.587 | K25: 0.6615 | L25: =SUM(L18:L23)*6/12*0.05 -> 3.27825 | N25: =SUM(N18:N23)*6/12*0.05 -> 0
D26: Charges variables additionnelles totales ($/t) | G26: =SUM(G18:G25) -> 40.68225 | H26: 31.08825 | I26: =SUM(I18:I25) -> 39.39075 | J26: =SUM(J18:J25) -> 24.067 | K26: 27.1215 | L26: 134.40825 | N26: =SUM(N18:N25) -> 0

Sheet Feuil1 (hidden)
A2: Liste déroulante:
A3: Maïs-grain conv.
A4: Soya conv.
A5: Blé animal conv.
A6: Blé panifiable conv.
A7: Orge animale conv.
A8: Avoine animale conv.
A9: Canola conv.
A10: Foin (PB)
A11: Foin (BR)
A12: Autre conv.
A13: Maïs-grain bio.
A14: Soya humain bio.
A15: Blé panifiable bio.
A16: Orge bio.
A17: Avoine bio.
A18: Canola bio.
A19: Autre bio.
